{"text_format":"1","workbook":"xlsx","n_sheets":4,"sheets":["koud buffet","matrixen","Algemene verkoopsvoorwaarden","Reservatievoorstel"],"not_rendered":{"charts":0,"images":0,"macros":1,"external_links":0,"defined_names":2,"comments":0,"pivot_tables":0},"unopened":[],"bounds":{"document_bytes":16777216,"sheet_cells":100000,"rows_first":2000,"rows_last":500,"rows_between":2000,"halvings":0,"cell_chars":16384,"cell_head_chars":4096},"cells_cut":0,"cells_raw":0,"read":"whole","date_system":"1900"}

{"sheet":"koud buffet","index":0,"n_rows":131,"n_cols":27,"rows_kept":131,"cut":false,"hidden":false,"merged":[[93,10,93,14],[94,10,94,14],[95,10,95,14],[70,1,71,1]]}
[null,"Deze info is van: Feestzaal Katelijnenhof, Heirweg 172, 8800 Roeselare. Contacteer de zaakvoerder: 0475/618058 - info@katelijnenhof.be - web: www.katelijnenhof.be met foto's en volledige prijslijst."]
[]
[null,{"$f":"\"Rekenmodule koud buffet. De prijzen van de recepties in deze module gelden voor alle personen waarvan de receptie gevolgd wordt door een maaltijd. Geldig  tot \" & DAY(matrixen!B1) & \" - \" & MONTH(matrixen!B1) & \" - \" & YEAR(matrixen!B1)","v":"Rekenmodule koud buffet. De prijzen van de recepties in deze module gelden voor alle personen waarvan de receptie gevolgd wordt door een maaltijd. Geldig  tot 23 - 2 - 2018"}]
[]
[null,null,null,null,null,"kinderen",null,"kinderen",null,"kinderen"]
[null,null,null,{"$f":"IF(TODAY()>AA11,\"Deze module is niet meer geldig.\",\"\")","v":""},null," 0 t.e.m. 2 j. 11 maand",null,"3 j. t.e.m. 5 j. 11 maand",null,"6 j, t.e.m. 11 jr. 11 maand"]
[null,"Totaal per volwassene:",null,{"$f":"IF(TODAY()>AA11,1/0,SUM(D10:D993))","v":33.799999999999997},null,"0,00",null,{"$f":"D7/3","v":11.266666666666666},null,{"$f":"D7/2","v":16.899999999999999}]
[null,null,null,null,null,"U kan ook voor de kinderen een kindermenu nemen ( zie een andere rekenmodule)"]
[]
[null,"MAAK STEEDS UW KEUZE in de gele vakken: (scroll naar beneden om meer gegevens in te vullen) Hierboven kunt u uw prijs volgen.",null,null,null,null,null,null,"U vindt verder een overzicht van uw selectie"]
[null,"(klik op de gele balk, vervolgens op het pijltje rechts en scroll ev. naar beneden)",null,"prijs pp",null,"Beknopte info",null,"Gedetailleerde info",null,null,null,null,null,null,null,null,null,null,null,null,null,null,null,null,null,null,{"$f":"matrixen!B1","v":"2018-02-23"}]
[]
[null,"Maak in dit vak uw keuze voor het aperitief",null,{"$f":"VLOOKUP(B13,matrixen!B11:I19,8,FALSE)","v":0},null,{"$f":"HLOOKUP($B$13,matrixen!$K$14:$S$18,2,FALSE)","v":0},null,{"$f":"HLOOKUP($B$13,matrixen!$T$14:$AB$28,2,FALSE)","v":0}]
[null,"Maak in dit vak uw keuze voor het aperitief",null,null,null,{"$f":"HLOOKUP($B$13,matrixen!$K$14:$S$18,3,FALSE)","v":0},null,{"$f":"HLOOKUP($B$13,matrixen!$T$14:$AB$28,3,FALSE)","v":0},null,null,null,null,null,null,null,null,null,null,null,null,null,null,null,null,null,null,{"$f":"matrixen!B11","v":"Maak in dit vak uw keuze voor het aperitief"}]
[null,null,null,null,null,{"$f":"HLOOKUP($B$13,matrixen!$K$14:$S$18,4,FALSE)","v":0},null,{"$f":"HLOOKUP($B$13,matrixen!$T$14:$AB$28,4,FALSE)","v":0},null,null,null,null,null,null,null,null,null,null,null,null,null,null,null,null,null,null,{"$f":"matrixen!B12","v":"1 aperitief per persoon"}]
[null,null,null,null,null,{"$f":"HLOOKUP($B$13,matrixen!$K$14:$S$19,5,FALSE)","v":0},null,{"$f":"HLOOKUP($B$13,matrixen!$T$14:$AB$28,5,FALSE)","v":0},null,null,null,null,null,null,null,null,null,null,null,null,null,null,null,null,null,null,{"$f":"matrixen!B13","v":"2 aperitieven per persoon"}]
[null,null,null,null,null,null,null,{"$f":"HLOOKUP($B$13,matrixen!$T$14:$AB$28,6,FALSE)","v":0},null,null,null,null,null,null,null,null,null,null,null,null,null,null,null,null,null,null,{"$f":"matrixen!B14","v":"Receptie F"}]
[null,null,null,null,null,null,null,{"$f":"HLOOKUP($B$13,matrixen!$T$14:$AB$28,7,FALSE)","v":0},null,null,null,null,null,null,null,null,null,null,null,null,null,null,null,null,null,null,{"$f":"matrixen!B15","v":"Receptie E"}]
[null,"Indien een genodigde een extra aperitief bestelt of een aperitief wenst die niet in de prijs begrepen is dan:",null,null,null,null,null,{"$f":"HLOOKUP($B$13,matrixen!$T$14:$AB$28,8,FALSE)","v":0},null,null,null,null,null,null,null,null,null,null,null,null,null,null,null,null,null,null,{"$f":"matrixen!B16","v":"Receptie D"}]
[null,"De gast die een extra aperitief bestelt betaalt deze zelf",null,null,null,"De gast die een extra aperitief bestelt betaalt deze zelf",null,{"$f":"HLOOKUP($B$13,matrixen!$T$14:$AB$28,9,FALSE)","v":0},null,null,null,null,null,null,null,null,null,null,null,null,null,null,null,null,null,null,{"$f":"matrixen!B17","v":"Receptie C"}]
[null,"De gast die een extra aperitief bestelt betaalt deze zelf",null,null,null,"Alle extra aperitief komt op de algemene rekening.",null,{"$f":"HLOOKUP($B$13,matrixen!$T$14:$AB$28,10,FALSE)","v":0},null,null,null,null,null,null,null,null,null,null,null,null,null,null,null,null,null,null,{"$f":"matrixen!B18","v":"Receptie B"}]
[null,null,null,null,null,null,null,{"$f":"HLOOKUP($B$13,matrixen!$T$14:$AB$28,11,FALSE)","v":0},null,null,null,null,null,null,null,null,null,null,null,null,null,null,null,null,null,null,{"$f":"matrixen!B19","v":"Receptie A"}]
[null,null,null,null,null,null,null,{"$f":"HLOOKUP($B$13,matrixen!$T$14:$AB$28,12,FALSE)","v":0},null,null,null,null,null,null,null,null,null,null,null,null,null,null,null,null,null,null,{"$f":"matrixen!B20","v":0}]
[null,null,null,null,null,null,null,{"$f":"HLOOKUP($B$13,matrixen!$T$14:$AB$28,13,FALSE)","v":0},null,null,null,null,null,null,null,null,null,null,null,null,null,null,null,null,null,null,{"$f":"matrixen!#REF!","v":{"$error":"#REF!"}}]
[null,null,null,null,null,null,null,{"$f":"HLOOKUP($B$13,matrixen!$T$14:$AB$28,14,FALSE)","v":0},null,null,null,null,null,null,null,null,null,null,null,null,null,null,null,null,null,null,{"$f":"matrixen!B22","v":0}]
[null,null,null,null,null,null,null,{"$f":"HLOOKUP($B$13,matrixen!$T$14:$AB$28,15,FALSE)","v":0},null,null,null,null,null,null,null,null,null,null,null,null,null,null,null,null,null,null,{"$f":"matrixen!B23","v":"Schuimwijn van het huis (reeds inbegrepen)"}]
[null,null,null,null,null,null,null,null,null,null,null,null,null,null,null,null,null,null,null,null,null,null,null,null,null,null,{"$f":"matrixen!B24","v":"Cava"}]
[null,"Stel zelf uw koud buffet samen!",null,null,null,null,null,null,null,null,null,null,null,null,null,null,null,null,null,null,null,null,null,null,null,null,{"$f":"matrixen!B25","v":"Champagne"}]
[null,"In elk buffet zijn steeds groenten voorzien,  koude aardappelen en/of aardappel in de pel en de schotels worden versierd met fruit. Ook de sausjes zijn inbegrepen.",null,null,null,null,null,null,null,null,null,null,null,null,null,null,null,null,null,null,null,null,null,null,null,null,{"$f":"matrixen!B26","v":0}]
[null,"Afhankelijk van de soort ingrediënten die u kiest, verandert de prijs van het buffet. U mag elk ingrediënt meermaals aanduiden als u graag van iets een grotere portie heeft ."]
[null,"Wij stellen voor om 12 ingrediënten te kiezen, voor een evenwichtig buffet. Meer of minder mag ook, het gewicht per persoon, per portie blijft steeds gelijk.",null,null,null,null,null,null,null,null,null,null,null,null,null,null,null,null,null,null,null,null,null,null,null,null,{"$f":"matrixen!B44","v":"Maak hier uw keuze voor extra hapjes bij het aperitief"}]
[null,"Meer info: ongeacht of u veel of weinig ingrediënten aanduidt, u bekomt steeds een even grote portie per persoon. Dus hoe meer ingrediënten u selecteert, hoe kleiner de hoeveelheid per soort op het buffet wordt.",null,null,null,null,null,null,null,null,null,null,null,null,null,null,null,null,null,null,null,null,null,null,null,null,{"$f":"matrixen!B45","v":"Nootjes, chips en zoutkoekjes zoveel u wenst,  per pers."}]
[null,"Indien niet duidelijk, bel of mail ons voor meer info. 0475/618058 of info@katelijnenhof.be.",null,null,null,null,null,null,null,null,null,null,null,null,null,null,null,null,null,null,null,null,null,null,null,null,{"$f":"matrixen!B46","v":"Rauwe groenten (wortel, bloemkool, cocktailsaus) prijs per persoon:"}]
[null,null,null,null,null,null,null,null,null,null,null,null,null,null,null,null,null,null,null,null,null,null,null,null,null,null,{"$f":"matrixen!B47","v":"Warme toostjes per stuk"}]
[null,"Kies hier eerst uw aardappelbereiding",null,null,null,null,null,null,null,null,null,null,null,null,null,null,null,null,null,null,null,null,null,null,null,null,{"$f":"matrixen!B48","v":"Koude toostjes per stuk"}]
[null,"Koude aardappelen",null,{"$f":"VLOOKUP(B36,matrixen!B85:G88,6,FALSE)","v":"inbegrepen"},null,null,null,null,null,null,null,null,null,null,null,null,null,null,null,null,null,null,null,null,null,null,{"$f":"matrixen!B49","v":"aperitiefglaasjes per stuk"}]
[null,"Koude aardappelen",null,null,null,null,null,null,null,null,null,null,null,null,null,null,null,null,null,null,null,null,null,null,null,null,{"$f":"matrixen!B50","v":"Oesters per stuk warm of koud"}]
[null,"Selecteer hier de samenstelling van uw buffet.  Indien u bij onderstaande lijst blijft, kost het buffet de basisprijs:",null,{"$f":"matrixen!B118","v":31},null,{"$f":"\"Selecteert u één of meer van onderstaande specialiteiten, is er een supplement van \"& matrixen!E118 &\" euro pp t.o.v. de basisprijs\"","v":"Selecteert u één of meer van onderstaande specialiteiten, is er een supplement van 5 euro pp t.o.v. de basisprijs"},null,null,null,null,null,null,null,null,null,null,null,null,null,null,null,null,null,null,null,null,{"$f":"matrixen!B51","v":"wachtbordje met vispasteitje"}]
[1,"Kies uit deze vlees- of visspecialiteiten",null,null,1,"supplement 1",{"$f":"IF(F39<> \"supplement 1\",1,0)","v":0},{"$f":"IF(G39+G40+G41+G42+G43+G44+G45+G46+G47>0,matrixen!E118,0)","v":0},null,"U mag tegelijk ook ",null,null,null,null,null,null,null,null,null,null,null,null,null,null,null,null,{"$f":"matrixen!B52","v":"wachtbordje van reuzentoost met gerookte zalm"}]
[2,"Kies uit deze vlees- of visspecialiteiten",null,null,2,"supplement 1",{"$f":"IF(F40<> \"supplement 1\",1,0)","v":0},{"$f":"IF(D50>0,matrixen!E118,0)","v":0},null,"uit de vorige categorie kiezen",null,null,null,null,null,null,null,null,null,null,null,null,null,null,null,null,{"$f":"matrixen!B53","v":"wachtbordje van lauw slaatje met gerookte zalm en scampi's"}]
[3,"Kies uit deze vlees- of visspecialiteiten",null,null,3,"supplement 1",0,{"$f":"H39-H40","v":0},null,null,null,null,null,null,null,null,null,null,null,null,null,null,null,null,null,null,{"$f":"matrixen!B54","v":0}]
[4,"Kies uit deze vlees- of visspecialiteiten",null,{"$f":"IF(H41>0,H41,0)","v":0},4,"supplement 1",0,null,null,null,null,null,null,null,null,null,null,null,null,null,null,null,null,null,null,null,{"$f":"matrixen!B55","v":0}]
[5,"Kies uit deze vlees- of visspecialiteiten",null,null,5,"supplement 1",0,null,null,null,null,null,null,null,null,null,null,null,null,null,null,null,null,null,null,null,{"$f":"matrixen!B56","v":0}]
[6,"Kies uit deze vlees- of visspecialiteiten",null,null,6,"supplement 1",0,null,null,null,null,null,null,null,null,null,null,null,null,null,null,null,null,null,null,null,{"$f":"matrixen!B85","v":"Koude aardappelen"}]
[7,"Kies uit deze vlees- of visspecialiteiten",null,null,7,"supplement 1",0,null,null,null,null,null,null,null,null,null,null,null,null,null,null,null,null,null,null,null,{"$f":"matrixen!B86","v":"Aardappel in de pel"}]
[8,"Kies uit deze vlees- of visspecialiteiten",null,null,8,"supplement 1",0,null,null,null,null,null,null,null,null,null,null,null,null,null,null,null,null,null,null,null,{"$f":"matrixen!B87","v":"1/2 koude aardappelen en 1/2 aardappel in de pel"}]
[9,"Kies uit deze vlees- of visspecialiteiten",null,null,9,"supplement 1",0,null,null,null,null,null,null,null,null,null,null,null,null,null,null,null,null,null,null,null,{"$f":"matrixen!B88","v":"frietjes (supplement)"}]
[10,"Kies uit deze vlees- of visspecialiteiten",null,null,null,{"$f":"\"Selecteert u één of meer van onderstaande specialiteiten, is er een supplement van \" & matrixen!H118 & \" euro pp t.o.v. de basisprijs\"","v":"Selecteert u één of meer van onderstaande specialiteiten, is er een supplement van 8,5 euro pp t.o.v. de basisprijs"}]
[11,"Kies uit deze vlees- of visspecialiteiten",null,null,null,"U mag tegelijk ook uit beide vorige categoriën kiezen.",null,null,null,null,null,null,null,null,null,null,null,null,null,null,null,null,null,null,null,null,{"$f":"matrixen!B97","v":"Kies uit deze vlees- of visspecialiteiten"}]
[12,"Kies uit deze vlees- of visspecialiteiten",null,{"$f":"IF(H50>0,matrixen!H118,0)","v":0},1,"supplement 2",{"$f":"IF(F50<> \"supplement 2\",1,0)","v":0},{"$f":"IF(G50+G51+G52>0,11,0)","v":0},null,null,null,null,null,null,null,null,null,null,null,null,null,null,null,null,null,null,{"$f":"matrixen!B98","v":"tonijnsla"}]
[null,"Kies uit deze vlees- of visspecialiteiten",null,null,2,"supplement 2",{"$f":"IF(F51<> \"supplement 2\",1,0)","v":0},null,null,null,null,null,null,null,null,null,null,null,null,null,null,null,null,null,null,null,{"$f":"matrixen!B99","v":"vispastei"}]
[null,null,null,null,3,"supplement 2",{"$f":"IF(F52<> \"supplement 2\",1,0)","v":0},null,null,null,null,null,null,null,null,null,null,null,null,null,null,null,null,null,null,null,{"$f":"matrixen!B100","v":"koolvis"}]
[null,null,null,null,null,"supplement 1",null,null,null,null,null,null,null,null,null,null,null,null,null,null,null,null,null,null,null,null,{"$f":"matrixen!B101","v":"halve tomaat belegd met krabsla"}]
[null,"Selecteer hier uw formule van de dranken tijdens het buffet.",null,null,null,"supplement 2",null,null,null,null,null,null,null,null,null,null,null,null,null,null,null,null,null,null,null,null,{"$f":"matrixen!B102","v":"pandalusgarnalen"}]
[null,"Huiswijn, bieren en frisdranken als forfait",null,{"$f":"VLOOKUP(B55,matrixen!B124:M126,12,FALSE)","v":2.8},null,null,null,null,null,null,null,null,null,null,null,null,null,null,null,null,null,null,null,null,null,null,{"$f":"matrixen!B103","v":"haring met dille"}]
[null,"Huiswijn, bieren en frisdranken als forfait",null,null,null,null,null,null,null,null,null,null,null,null,null,null,null,null,null,null,null,null,null,null,null,null,{"$f":"matrixen!B104","v":"américain préparé"}]
[null,null,null,null,null,"extra info",null,null,null,null,null,null,null,null,null,null,null,null,null,null,null,null,null,null,null,null,{"$f":"matrixen!B105","v":"varkensgebraad"}]
[null,"Selecteer hier uw dessert.",null,null,null,null,null,null,null,null,null,null,null,null,null,null,null,null,null,null,null,null,null,null,null,null,{"$f":"matrixen!B106","v":"salami"}]
[null,"Nog geen dessert geselecteerd",null,{"$f":"VLOOKUP(B59,matrixen!B127:I150,8,FALSE)","v":0},null,{"$f":"VLOOKUP($B$59,dessert,10,FALSE)","v":0},null,null,null,null,null,null,null,null,null,null,null,null,null,null,null,null,null,null,null,null,{"$f":"matrixen!B107","v":"gekookte achterham"}]
[null,"Nog geen dessert geselecteerd",null,null,null,{"$f":"VLOOKUP($B$59,dessert,11,FALSE)","v":0},null,null,null,null,null,null,null,null,null,null,null,null,null,null,null,null,null,null,null,null,{"$f":"matrixen!B108","v":"hennepot"}]
[null,null,null,null,null,{"$f":"VLOOKUP($B$59,dessert,12,FALSE)","v":0},null,null,null,null,null,null,null,null,null,null,null,null,null,null,null,null,null,null,null,null,{"$f":"matrixen!B109","v":"vleespastei"}]
[null,null,null,null,null,{"$f":"VLOOKUP($B$59,dessert,13,FALSE)","v":0},null,null,null,null,null,null,null,null,null,null,null,null,null,null,null,null,null,null,null,null,{"$f":"matrixen!B110","v":"hoofdvlees"}]
[null,null,null,null,null,{"$f":"VLOOKUP($B$59,dessert,14,FALSE)","v":0},null,null,null,null,null,null,null,null,null,null,null,null,null,null,null,null,null,null,null,null,{"$f":"matrixen!B111","v":"stukjes kippebout"}]
[null,null,null,null,null,{"$f":"VLOOKUP($B$59,dessert,15,FALSE)","v":0},null,null,null,null,null,null,null,null,null,null,null,null,null,null,null,null,null,null,null,null,{"$f":"matrixen!B112","v":"hespeworst"}]
[null,"Selecteer hier uw koffie",null,null,null,null,null,null,null,null,null,null,null,null,null,null,null,null,null,null,null,null,null,null,null,null,{"$f":"matrixen!B113","v":"gepocheerde zalm"}]
[null,"Nog geen keuze gemaakt",null,{"$f":"VLOOKUP(B66,matrixen!B154:I157,8,FALSE)","v":0},null,null,null,null,null,null,null,null,null,null,null,null,null,null,null,null,null,null,null,null,null,null,{"$f":"matrixen!B114","v":"gerookte bacon"}]
[null,"Nog geen keuze gemaakt",null,null,null,null,null,null,null,null,null,null,null,null,null,null,null,null,null,null,null,null,null,null,null,null,{"$f":"matrixen!B115","v":"gepocheerde forel"}]
[null,"Alle drank na de maaltijd komt op één rekening en wordt door de organisator van het feest betaald",null,{"$f":"VLOOKUP(B68,matrixen!A159:P161,15,FALSE)","v":0},{"$f":"VLOOKUP(B68,matrixen!A159:P161,16,FALSE)","v":"één rekening"},"Vegetariërs: ","nee","Speciale dieten: ","nee","Halal bereidingen: ","nee",null,null,null,null,null,null,null,null,null,null,null,null,null,null,null,{"$f":"matrixen!B116","v":"makreel met peper"}]
[null,"Alle drank na de maaltijd komt op één rekening en wordt door de organisator van het feest betaald"]
[null,"Wijze van betaling:",null,null,null,"Feest met discobar: ","nee","Allergenen: ","nee",{"$f":"IF($I$70=\"ja\",matrixen!A165,\"\")","v":""},null,null,null,null,null,null,null,null,null,null,null,null,null,null,null,null,{"$f":"matrixen!E97","v":"supplement 1"}]
[null,"Betaling op de dag zelf (cash of bancontact), u bekomt 2% korting op het totaal",null,null,null,null,null,null,null,{"$f":"IF($I$70=\"ja\",matrixen!A166,\"\")","v":""},null,null,null,null,null,null,null,null,null,null,null,null,null,null,null,null,{"$f":"matrixen!E98","v":"tomaat met grijze garnalen"}]
[null,null,null,null,null,null,null,{"$f":"IF(G70=\"ja\",matrixen!A169,\"\")","v":""},null,{"$f":"IF($I$70=\"ja\",matrixen!A167,\"\")","v":""},null,null,null,null,null,null,null,null,null,null,null,null,null,null,null,null,{"$f":"matrixen!E99","v":"gerookte zalm"}]
[null,"Om uw selecties te bewaren, gelieve ze op te slaan op uw harde schijf. (opslaan als)",null,null,null,null,null,null,null,null,null,null,null,null,null,null,null,null,null,null,null,null,null,null,null,null,{"$f":"matrixen!E100","v":"parmaham"}]
[null,"Om een aanvraag naar ons te versturen stuur een mail naar info@katelijnenhof met in bijlage dit bestand vanaf uw harde schijf.",null,null,null,null,null,null,null,null,null,null,null,null,null,null,null,null,null,null,null,null,null,null,null,null,{"$f":"matrixen!E101","v":"langoustines 1 pp"}]
[null,null,null,null,"Eventuele datum van het feest:",null,null,"Overzicht van uw selectie:",null,null,null,null,null,null,null,null,null,null,null,null,null,null,null,null,null,null,{"$f":"matrixen!E102","v":"gebakken scampi's 2 pp"}]
[null,null,null,null,null,"Het exacte aantal personen en de tafelschikking dient ons meegedeeld te worden de vrijdag van het weekend voordien.",null,{"$f":"IF(L76>0,B13,\"\")","v":""},null,null,null,{"$f":"D13","v":0},null,null,null,null,null,null,null,null,null,null,null,null,null,null,{"$f":"matrixen!E103","v":"roastbeef"}]
[null,null,null,null,"geraamd aantal volwassenen:",null,null,{"$f":"IF(L77>0,B92,\"\")","v":""},{"$f":"IF(L77>0,\"geldt alleen bij recepties!!!\",\"\")","v":""},null,null,{"$f":"D92","v":0},null,null,null,null,null,null,null,null,null,null,null,null,null,null,{"$f":"matrixen!E104","v":"kabeljauw"}]
[null,null,null,null,"geraamd aantal kinderen 6 j. t.e.m. 11 jr. 11 maand:",null,null,{"$f":"IF(L78>0,B98,\"\")","v":""},null,null,null,{"$f":"D98","v":0},null,null,null,null,null,null,null,null,null,null,null,null,null,null,{"$f":"matrixen!E105","v":"gerookte heilbot"}]
[null,null,null,null,"geraamd aantal kinderen 3 j. t.e.m. 5 j. 11 maand:",null,null,{"$f":"IF(L79>0,B99,\"\")","v":""},null,null,null,{"$f":"D99","v":0},null,null,null,null,null,null,null,null,null,null,null,null,null,null,{"$f":"matrixen!E106","v":"gerookte forelfilet"}]
[null,null,null,null,"geraamd aantal kinderen  0 t.e.m. 2 j. 11 maand:",null,null,{"$f":"IF(L80>0,B100,\"\")","v":""},null,null,null,{"$f":"D100","v":0}]
[null,null,null,null,null,null,null,{"$f":"IF(L81>0,B101,\"\")","v":""},null,null,null,{"$f":"D101","v":0},null,null,null,null,null,null,null,null,null,null,null,null,null,null,{"$f":"matrixen!H97","v":"supplement 2"}]
[null,null,null,null,"uur van aankomst:",null,null,{"$f":"IF(L82>0,B102,\"\")","v":""},null,null,null,{"$f":"D102","v":0},null,null,null,null,null,null,null,null,null,null,null,null,null,null,{"$f":"matrixen!H98","v":"foie gras"}]
[null,null,null,null,"aan tafel om:",null,null,{"$f":"B36","v":"Koude aardappelen"},null,null,null,{"$f":"D36","v":"inbegrepen"},null,null,null,null,null,null,null,null,null,null,null,null,null,null,{"$f":"matrixen!H99","v":"oesters 2pp"}]
[null,null,null,null,"Uw naam:",null,null,"Groenten en sausen ",null,null,null,"inbegrepen",null,null,null,null,null,null,null,null,null,null,null,null,null,null,{"$f":"matrixen!H100","v":"kreeft"}]
[null,null,null,null,"Adres:",null,null,"Basisprijs koud buffet (gedetailleerde samenstelling zie hoger):",null,null,null,{"$f":"D38","v":31}]
[null,null,null,null,"Stad:",null,null,{"$f":"IF(L86>0,\"U selecteerde ook uit supplement 1\",\"\")","v":""},null,null,null,{"$f":"D42","v":0},null,null,null,null,null,null,null,null,null,null,null,null,null,null,{"$f":"matrixen!B124","v":"Huiswijn, bieren en frisdranken als forfait"}]
[null,null,null,null,"Tel nr:",null,null,{"$f":"IF(L87>0,\"U selecteerde ook uit supplement 2\",\"\")","v":""},null,null,null,{"$f":"D50","v":0},null,null,null,null,null,null,null,null,null,null,null,null,null,null,{"$f":"matrixen!B125","v":"Domaine Joel Delauny Touraine  en/of Château Reynier, Bordeaux superieur,  bieren en frisdranken"}]
[null,null,null,null,"email:",null,null,{"$f":"B55","v":"Huiswijn, bieren en frisdranken als forfait"},null,null,null,{"$f":"D55","v":2.8},null,null,null,null,null,null,null,null,null,null,null,null,null,null,{"$f":"matrixen!B126","v":0}]
[null,null,null,null,"geraamde totalen uit andere rekenbladen:",null,null,{"$f":"IF(L89>0,B59,\"\")","v":""},null,null,null,{"$f":"D59","v":0}]
[null,"Mogelijke supplementen bij de recepties",null,null,"(vb: kindermenus)",null,null,{"$f":"IF(L90>0,B66,\"\")","v":""},null,null,null,{"$f":"D66","v":0},null,null,null,null,null,null,null,null,null,null,null,null,null,null,{"$f":"matrixen!B127","v":"Nog geen dessert geselecteerd"}]
[null,null,null,null,null,null,null,"Keuze drank na de maaltijd:",null,null,null,{"$f":"E68","v":"één rekening"},null,null,null,null,null,null,null,null,null,null,null,null,null,null,{"$f":"matrixen!B128","v":"Halve gegarneerde maan"}]
[null,"Schuimwijn van het huis (reeds inbegrepen)",null,{"$f":"VLOOKUP(B92,matrixen!B23:I26,8,FALSE)","v":0},null,null,null,null,null,null,null,null,null,null,null,null,null,null,null,null,null,null,null,null,null,null,{"$f":"matrixen!B129","v":"Waaier van nagerechten (gebak, ijs, chocomousse, fruit)"}]
[null,null,null,null,"Geschat factuurtotaal:",{"$f":"Reservatievoorstel!I12","v":0},null,"Gaat u akkoord met de algemene verkoopsvoorwaarden?",null,null,"ja",null,null,null,null,null,null,null,null,null,null,null,null,null,null,null,{"$f":"matrixen!B130","v":"IJstaart ambachtelijk, speciale vorm, smaak naar keuze"}]
[null,null,null,null,null,"(Gebaseerd op de door u ingebrachte gegevens)",null,null,null,"Voorkeur tafelschikking:","geen voorkeur",null,null,null,null,null,null,null,null,null,null,null,null,null,null,null,{"$f":"matrixen!B131","v":"Trio van witte- melk- en fondantchocolade op amandelbiscuit  "}]
[null,"Eventueel: extra hapjes bij het aperitief.",null,null,null,"korting bij contante betaling:",{"$f":"F93*0.02","v":0},null,null,"reden feest:",null,null,null,null,null,null,null,null,null,null,null,null,null,null,null,null,{"$f":"matrixen!B132","v":"Stel zelf uw mini dessertbordje samen met 4 dessertjes"}]
[null,null,null,null,null,"saldo:",{"$f":"F93-G95","v":0},null,null,"Opmerking:",null,null,null,null,null,null,null,null,null,null,null,null,null,null,null,null,{"$f":"matrixen!B133","v":"Coupe met vers fruit en verse slagroom."}]
[null,null,null,null,{"$f":"SUMIF(B98:B102,\"warme toostjes per stuk\",D98:D102)","v":0},{"$f":"IF($E$97>0,matrixen!B58,\"\")","v":""},{"$f":"SUMIF(B98:B102,\"koude toostjes per stuk\",D98:D102)","v":0},{"$f":"IF($G$97>0,matrixen!E58,\"\")","v":""},{"$f":"SUMIF(B98:B102,\"aperitiefglaasjes per stuk\",D98:D102)","v":0},"Wenst u een factuur?","nee",null,null,null,null,null,null,null,null,null,null,null,null,null,null,null,{"$f":"matrixen!B134","v":"Aardbeiensoepje met sinaasappel in seizoen"}]
[null,"Maak hier uw keuze voor extra hapjes bij het aperitief",null,{"$f":"VLOOKUP(B98,matrixen!$B$44:$I$55,8,FALSE)","v":0},null,{"$f":"IF($E$97>0,matrixen!B59,\"\")","v":""},null,{"$f":"IF($G$97>0,matrixen!E59,\"\")","v":""},null,{"$f":"IF($I$97>0,matrixen!H59,\"\")","v":""},{"$f":"IF(K97=\"ja\",\"Gelieve uw facturatiegegevens bij opmerkingen in te vullen.\",\"\")","v":""},null,null,null,null,null,null,null,null,null,null,null,null,null,null,null,{"$f":"matrixen!B135","v":"Coupe met aardbeien en verse slagroom."}]
[null,"Maak hier uw keuze voor extra hapjes bij het aperitief",null,{"$f":"VLOOKUP(B99,matrixen!$B$44:$I$55,8,FALSE)","v":0},null,{"$f":"IF($E$97>0,matrixen!B60,\"\")","v":""},null,{"$f":"IF($G$97>0,matrixen!E60,\"\")","v":""},null,{"$f":"IF($I$97>0,matrixen!H60,\"\")","v":""},null,null,null,null,null,null,null,null,null,null,null,null,null,null,null,null,{"$f":"matrixen!B136","v":"Dame blanche"}]
[null,"Maak hier uw keuze voor extra hapjes bij het aperitief",null,{"$f":"VLOOKUP(B100,matrixen!$B$44:$I$55,8,FALSE)","v":0},null,{"$f":"IF($E$97>0,matrixen!B61,\"\")","v":""},null,{"$f":"IF($G$97>0,matrixen!E61,\"\")","v":""},null,{"$f":"IF($I$97>0,matrixen!H61,\"\")","v":""},null,null,null,null,null,null,null,null,null,null,null,null,null,null,null,null,{"$f":"matrixen!B137","v":"- frambozentaart"}]
[null,"Maak hier uw keuze voor extra hapjes bij het aperitief",null,{"$f":"VLOOKUP(B101,matrixen!$B$44:$I$55,8,FALSE)","v":0},null,{"$f":"IF($E$97>0,matrixen!B62,\"\")","v":""},null,{"$f":"IF($G$97>0,matrixen!E62,\"\")","v":""},null,{"$f":"IF($I$97>0,matrixen!H62,\"\")","v":""},null,null,null,null,null,null,null,null,null,null,null,null,null,null,null,null,{"$f":"matrixen!B138","v":"- progres"}]
[null,"Maak hier uw keuze voor extra hapjes bij het aperitief",null,{"$f":"VLOOKUP(B102,matrixen!$B$44:$I$55,8,FALSE)","v":0},null,{"$f":"IF($E$97>0,matrixen!B63,\"\")","v":""},null,{"$f":"IF($G$97>0,matrixen!E63,\"\")","v":""},null,{"$f":"IF($I$97>0,matrixen!H63,\"\")","v":""},null,null,null,null,null,null,null,null,null,null,null,null,null,null,null,null,{"$f":"matrixen!B139","v":"- fruitgebakje"}]
[null,null,null,null,null,{"$f":"IF($E$97>0,matrixen!B64,\"\")","v":""},null,{"$f":"IF($G$97>0,matrixen!E64,\"\")","v":""},null,null,null,null,null,null,null,null,null,null,null,null,null,null,null,null,null,null,{"$f":"matrixen!B140","v":"- biscuit crème fraiche met coulis"}]
[null,null,null,null,null,null,null,null,null,null,null,null,null,null,null,null,null,null,null,null,null,null,null,null,null,null,{"$f":"matrixen!B141","v":"- warme appeltaart met een bolletje ijs"}]
[null,null,null,null,null,null,null,null,null,null,null,null,null,null,null,null,null,null,null,null,null,null,null,null,null,null,{"$f":"matrixen!B142","v":"- zwarte woudtaart"}]
[null,null,null,null,null,null,null,null,null,null,null,null,null,null,null,null,null,null,null,null,null,null,null,null,null,null,{"$f":"matrixen!B143","v":"Sabayon met rood fruit"}]
[null,null,null,null,null,null,null,null,null,null,null,null,null,null,null,null,null,null,null,null,null,null,null,null,null,null,{"$f":"matrixen!B144","v":"Verse ananas met ijs en suikerspin"}]
[null,null,null,null,null,null,null,null,null,null,null,null,null,null,null,null,null,null,null,null,null,null,null,null,null,null,{"$f":"matrixen!B145","v":"Basis dessertbuffet met:"}]
[null,null,null,null,null,null,null,null,null,null,null,null,null,null,null,null,null,null,null,null,null,null,null,null,null,null,{"$f":"matrixen!B146","v":"Uitgebreid dessertbuffet met:"}]
[null,null,null,null,null,null,null,null,null,null,null,null,null,null,null,null,null,null,null,null,null,null,null,null,null,null,{"$f":"matrixen!B147","v":"Uitgebreid en luxueus dessertbuffet met:"}]
[]
[null,null,null,null,null,null,null,null,null,null,null,null,null,null,null,null,null,null,null,null,null,null,null,null,null,null,{"$f":"matrixen!B154","v":"Nog geen keuze gemaakt"}]
[null,null,null,null,null,null,null,null,null,null,null,null,null,null,null,null,null,null,null,null,null,null,null,null,null,null,{"$f":"matrixen!B155","v":"Koffie 3 X bediend"}]
[null,null,null,null,null,null,null,null,null,null,null,null,null,null,null,null,null,null,null,null,null,null,null,null,null,null,{"$f":"matrixen!B156","v":"Koffie 3 X bediend met koekjes"}]
[null,null,null,null,null,null,null,null,null,null,null,null,null,null,null,null,null,null,null,null,null,null,null,null,null,null,{"$f":"matrixen!B157","v":"Koffie 3 X bediend met pralines"}]
[]
[null,null,null,null,null,null,null,null,null,null,null,null,null,null,null,null,null,null,null,null,null,null,null,null,null,null,{"$f":"matrixen!A159","v":"Alle drank na de maaltijd komt op één rekening en wordt door de organisator van het feest betaald"}]
[null,null,null,null,null,null,null,null,null,null,null,null,null,null,null,null,null,null,null,null,null,null,null,null,null,null,{"$f":"matrixen!A160","v":"Elke gast die na de maaltijd een drankje bestelt rekent direct af aan de bar"}]
[null,null,null,null,null,null,null,null,null,null,null,null,null,null,null,null,null,null,null,null,null,null,null,null,null,null,{"$f":"matrixen!A161","v":"Forfait voor drank naar believen (alle bieren en frisdranken van de drankkaart in de zaal) na een maaltijd. pp: "}]
[]
[null,null,null,null,null,null,null,null,null,null,null,null,null,null,null,null,null,null,null,null,null,null,null,null,null,null,{"$f":"matrixen!A187","v":"ja"}]
[null,null,null,null,null,null,null,null,null,null,null,null,null,null,null,null,null,null,null,null,null,null,null,null,null,null,{"$f":"matrixen!A188","v":"nee"}]
[]
[null,null,null,null,null,null,null,null,null,null,null,null,null,null,null,null,null,null,null,null,null,null,null,null,null,null,"geen voorkeur"]
[null,null,null,null,null,null,null,null,null,null,null,null,null,null,null,null,null,null,null,null,null,null,null,null,null,null,"zoveel mogelijk ronde tafels van 6 à 8 personen"]
[null,null,null,null,null,null,null,null,null,null,null,null,null,null,null,null,null,null,null,null,null,null,null,null,null,null,"liever lange tafels ev. In U-vorm of H-vorm."]
[]
[]
[null,null,null,null,null,null,null,null,null,null,null,null,null,null,null,null,null,null,null,null,null,null,null,null,null,null,{"$f":"matrixen!A380","v":"Betaling op de dag zelf (cash of bancontact), u bekomt 2% korting op het totaal"}]
[null,null,null,null,null,null,null,null,null,null,null,null,null,null,null,null,null,null,null,null,null,null,null,null,null,null,{"$f":"matrixen!A381","v":"Storting op BE 48 4631 1391 2127 of op BE 14 3770 7615 9383, min. 7 dagen voor het feest, 2% korting"}]
[null,null,null,null,null,null,null,null,null,null,null,null,null,null,null,null,null,null,null,null,null,null,null,null,null,null,{"$f":"matrixen!A382","v":"Betaling na het feest. Gelieve 40 % voorschot te storten op BE48 4631 1391 2127 of op BE14 3770 7615 9383 . Geen korting."}]

{"sheet":"matrixen","index":1,"n_rows":382,"n_cols":28,"rows_kept":382,"cut":false,"hidden":true,"merged":[]}
[null,"2018-02-23",null,null,null,null,null,null,null,null,null,"lam, zwanen enz..  . Met foto suppl.",null,null,null,15]
[null,null,null,null,null,null,null,null,null,null,null,"Foto op de taart: suppl. € ",null,null,0.7,"per stuk taart en € ",null,10," per foto"]
[]
[]
[]
[null,"Minimaal verbruik feest",null,null,950]
[]
[]
[]
[]
[null,"Maak in dit vak uw keuze voor het aperitief"]
[null,"1 aperitief per persoon",null,null,null,null,null,null,6]
[null,"2 aperitieven per persoon",null,null,null,null,null,null,10]
[null,"Receptie F",null,null,null,null,null,null,15.5,null,"Maak in dit vak uw keuze voor het aperitief","1 aperitief per persoon","2 aperitieven per persoon","Receptie F","Receptie E","Receptie D","Receptie C","Receptie B","Receptie A","Maak in dit vak uw keuze voor het aperitief","1 aperitief per persoon","2 aperitieven per persoon","Receptie F","Receptie E","Receptie D","Receptie C","Receptie B","Receptie A"]
[null,"Receptie E",null,null,null,null,null,null,12.600000000000001,null,null,"1 per persoon,  ","2 per persoon,  ","Zeer uitgebreide receptie","Uitgebreide receptie","Basis receptie.","Zeer uitgebreide receptie","Uitgebreide receptie","Basis receptie.",null,"vrije keuze","vrije keuze","dranken inbegrepen gedurende 2 uur","dranken inbegrepen gedurende 2 uur","dranken inbegrepen gedurende 2 uur","dranken inbegrepen gedurende 2 uur","dranken inbegrepen gedurende 2 uur","dranken inbegrepen gedurende 2 uur"]
[null,"Receptie D",null,null,null,null,null,null,11.100000000000001,null,null,"eventueel tweede wordt","eventueel derde wordt","met 4 aperitiefglaasjes,","met 4 aperitiefglaasjes","Dranken 2 uur inbegrepen.","met 3 koude toastjes en 3 warme ","met 3 koude toastjes en 3 warme ","Dranken 2 uur inbegrepen.",null,"Porto rood","Porto rood","met Schuimwijn van het huis en alle frisdranken en bieren naar believen, ","met Schuimwijn van het huis en alle frisdranken en bieren naar believen, ","met Schuimwijn van het huis en alle frisdranken en bieren naar believen, ","met Schuimwijn van het huis en alle frisdranken en bieren naar believen, ","met Schuimwijn van het huis en alle frisdranken en bieren naar believen, ","met Schuimwijn van het huis en alle frisdranken en bieren naar believen, "]
[null,"Receptie C",null,null,null,null,null,null,15.5,null,null,"direct afgerekend of","direct afgerekend of","een soepje, 2 warme hapjes"," en drank gedurende 2 uur.",null,"hapjes, kleine versnaperingen","hapjes, kleine versnaperingen",null,null,"Martini","Martini","Assortiment van 4 aperitiefglaasjes (samenstelling kan verschillen), een soepje en 2 warme hapjes","Assortiment van 4 aperitiefglaasjes: (samenstelling kan verschillen)","kaasjes, salami, tapenades,","kaasjes, salami,  olijven, nootjes en chips.","kaasjes, salami,  olijven, nootjes en chips.","tapenades"]
[null,"Receptie B",null,null,null,null,null,null,12.600000000000001,null,null,"komt op 1 rekening","komt op 1 rekening","en drank gedurende 2 uur.",null,null,"en drank gedurende 2 uur.",null,null,null,"Kir","Kir","* eendenmousse met rode bessen en koornbloemblaadjes","* eendenmousse met rode bessen en koornbloemblaadjes"," olijven en nootjes en chips","lepeltje gevuld met vismousse","lepeltje gevuld met vismousse","nootjes en chips"]
[null,"Receptie A",null,null,null,null,null,null,10,null,null,null,null,null,null,null,null,null,null,null,"Frisdrank","Frisdrank","* luzerne met gerookte zalm, eitjes van vliegende vis in wasabi","* luzerne met gerookte zalm, eitjes van vliegende vis in wasabi",null,"lepeltje gevuld met vleesmousse","lepeltje gevuld met vleesmousse"]
[null,null,null,null,null,null,null,null,null,null,null,null,null,null,null,null,null,null,null,null,"Bieren","Bieren","* mousse van krab met rode bietscheutjes","* mousse van krab met rode bietscheutjes",null,"3 warme hapjes pp","3 warme hapjes pp"]
[null,null,null,null,null,null,null,null,null,null,null,null,null,null,null,null,null,null,null,null,"nootjes en chips inbegrepen","nootjes en chips inbegrepen","* preischeuten met garnalen en mini tomaat","* preischeuten met garnalen en mini tomaat",null,"* kippenbilletje * toastcupje * garnaal in filodeeg","* kippenbilletje * toastcupje * garnaal in filodeeg"]
[null,null,null,null,null,null,null,null,null,null,null,null,null,null,null,null,null,null,null,null,"TIP:","TIP:","* tomatensoepje en 2 warme hapjes, standaard een garnaal in filodeeg en een kippenvleugeltje",null,null,"3 koude toostjes pp",0]
[null,"Schuimwijn van het huis (reeds inbegrepen)",null,null,null,null,null,null,0,null,null,null,null,null,null,null,null,null,null,null,"Een receptie naar believen","Receptie A is dezelfde prijs.","TIP: Er is veel meer keuze dan de standaard hapjes","TIP: Er is veel meer keuze dan de standaard hapjes",null,"* gerookte zalm * vissalade * grijze garnalen",0]
[null,"Cava",null,null,null,null,null,null,3.25,null,null,null,null,null,null,null,null,null,null,null,"kost evenveel als","Maar daar is de drank naar believen gedurende ","die hierboven vermeld worden. Via deze tool kunt u dit","die hierboven vermeld worden. Via deze tool kunt u dit",null,"Tip: Bovenstaande hapjes kunnen ook gewijzigd worden.","Tip: Bovenstaande hapjes kunnen ook gewijzigd worden."]
[null,"Champagne",null,null,null,null,null,null,7,null,null,null,null,null,null,null,null,null,null,null,"2 aperitieven per persoon.","maximaal 2 uur. En er zijn wat tapenades.","niet aanpassen maar wel als u bij ons langskomt. ","niet aanpassen maar wel als u bij ons langskomt. ",null,"Niet via deze tool maar wel bij reservatie","Niet via deze tool maar wel bij reservatie"]
[null,null,null,null,null,null,null,null,null,null,null,null,null,null,null,null,null,null,null,null,"Selecteer daartoe receptie A!","We komen rond met schuimwijn en ","De keuzemogelijkheden staan gedetailleerd ","De keuzemogelijkheden staan gedetailleerd ",null,"De keuzemogelijkheden staan gedetailleerd ","De keuzemogelijkheden staan gedetailleerd "]
[null,null,null,null,null,null,null,null,null,null,null,null,null,null,null,null,null,null,null,null,0,"fruitsap maar alle bovenstaande dranken","beschreven in het pdf document \"prijslijst\" pagina 9.","beschreven in het pdf document \"prijslijst\" pagina 9.",null,"beschreven in het pdf document \"prijslijst\" pagina 9.","beschreven in het pdf document \"prijslijst\" pagina 9."]
[null,null,null,null,null,null,null,null,null,null,null,null,null,null,null,null,null,null,null,null,0,"kunnen op vraag ook bekomen worden.","U krijgt hier wel een prijsindicatie maar weet dat er meer moglijkheden zijn.","U krijgt hier wel een prijsindicatie maar weet dat er meer moglijkheden zijn.",null,"U krijgt hier wel een prijsindicatie maar weet dat er meer moglijkheden zijn.","U krijgt hier wel een prijsindicatie maar weet dat er meer moglijkheden zijn."]
[]
[null,"Dessertbuffet zonder maaltijd: ",null,null,null,null,null,null,16.5]
[null,"Koffie 3 X bediend",null,null,null,null,null,null,2.5]
[]
[]
[null,"1 aperitief per persoon, vrije keuze",null,null,null,null,null,null,6]
[null,"Pineau des charentes wit",null,null,null,null,null,null,6]
[null,"Maison (basis safari)",null,null,null,null,null,null,6]
[null,"Kir royale",null,null,null,null,null,null,6]
[null,"Sherry dry",null,null,null,null,null,null,6]
[null,"Porto",null,null,null,null,null,null,6]
[null,"Martini (wit/rood)",null,null,null,null,null,null,6]
[null,"Kir",null,null,null,null,null,null,6]
[null,"Schuimwijn",null,null,null,null,null,null,6]
[]
[null,"Maak hier uw keuze voor extra hapjes bij het aperitief"]
[null,"Nootjes, chips en zoutkoekjes zoveel u wenst,  per pers.",null,null,null,null,null,null,"gratis"]
[null,"Rauwe groenten (wortel, bloemkool, cocktailsaus) prijs per persoon:",null,null,null,null,null,null,1]
[null,"Warme toostjes per stuk",null,null,null,null,null,null,1]
[null,"Koude toostjes per stuk",null,null,null,null,null,null,1.3]
[null,"aperitiefglaasjes per stuk",null,null,null,null,null,null,2]
[null,"Oesters per stuk warm of koud",null,null,null,null,null,null,2.2999999999999998]
[null,"wachtbordje met vispasteitje",null,null,null,null,null,null,4]
[null,"wachtbordje van reuzentoost met gerookte zalm",null,null,null,null,null,null,4]
[null,"wachtbordje van lauw slaatje met gerookte zalm en scampi's",null,null,null,null,null,null,6]
[]
[]
[]
[]
[null,"Keuze warme toostjes",null,null,"Keuze koude toostjes",null,null,"Keuze aperoglaasjes"]
[null,"(bij reservatie te bepalen)",null,null,"(bij reservatie te bepalen)",null,null,"(bij reservatie te bepalen)"]
[null,"kippenbilletjes",null,null,"toost garnaal koud",null,null,"aperoglaasje eendenmousse"]
[null,"toostcupje",null,null,"toost gerookte zalm koud",null,null,"aperoglaasje gerookte zalm"]
[null,"garnaal in filo",null,null,"toost krabsla koud",null,null,"aperoglaasje mousse van krab"]
[null,"mini croque",null,null,"toost eendenpastei koud",null,null,"aperoglaasje tomaat / garnaal"]
[null,"scampi enz….",null,null,null,null,null,"en nog veel mogelijkheden"]
[]
[]
[]
[]
[null,null,"uitgebreide fomule met toostjes in menuvorm (max 3uur)"]
[null,null,"“3 koude voorgerechtjes”"]
[null,null,"koud hapje met krabsla "]
[null,null,"koud hapje met gerookte zalm"]
[null,null,"koud hapje met grijze garnalen"]
[null,null,"“soepje”"]
[null,null,"1 mini soepje tomatenroom of vissoepje"]
[null,null,"“3 warme gerechtjes”"]
[null,null,"kippenboutje"]
[null,null,"mini loempia"]
[null,null,"mini croque monsieur"]
[null,null,"“2 dessertjes”"]
[null,null,"mini-brochetje met druifje, ananas en meloenbolletje"]
[null,null,"mini confituurtaartje"]
[]
[]
[null,"Koude aardappelen",null,null,null,null,"inbegrepen"]
[null,"Aardappel in de pel",null,null,null,null,"inbegrepen"]
[null,"1/2 koude aardappelen en 1/2 aardappel in de pel",null,null,null,null,"inbegrepen"]
[null,"frietjes (supplement)",null,null,null,null,1]
[]
[]
[]
[]
[]
[]
[]
[]
[1,"Kies uit deze vlees- of visspecialiteiten",null,1,"supplement 1",null,1,"supplement 2"]
[2,"tonijnsla",null,2,"tomaat met grijze garnalen",null,2,"foie gras"]
[3,"vispastei",null,3,"gerookte zalm",null,3,"oesters 2pp"]
[4,"koolvis",null,4,"parmaham",null,4,"kreeft"]
[5,"halve tomaat belegd met krabsla",null,5,"langoustines 1 pp"]
[6,"pandalusgarnalen",null,6,"gebakken scampi's 2 pp"]
[7,"haring met dille",null,7,"roastbeef"]
[8,"américain préparé",null,8,"kabeljauw"]
[9,"varkensgebraad",null,9,"gerookte heilbot"]
[10,"salami",null,10,"gerookte forelfilet"]
[11,"gekookte achterham"]
[12,"hennepot"]
[13,"vleespastei"]
[14,"hoofdvlees"]
[15,"stukjes kippebout"]
[16,"hespeworst"]
[17,"gepocheerde zalm"]
[18,"gerookte bacon",null,null,null,"De aanpassing gebeurt ondertussen automatisch"]
[19,"gepocheerde forel"]
[20,"makreel met peper"]
[null,"basisprijs",null,null,"sup. Tov basisprijs",null,null,"sup. Tov basisprijs"]
[null,31,null,null,5,null,null,8.5]
[null,"Basisprijs buffet:",null,null,"Supplement \"koning\"",null,null,"Supplement \"keizer\""]
[]
[]
[]
[]
[null,"Huiswijn, bieren en frisdranken als forfait",null,null,null,null,null,null,null,null,null,null,2.8]
[null,"Domaine Joel Delauny Touraine  en/of Château Reynier, Bordeaux superieur,  bieren en frisdranken",null,null,null,null,null,null,null,null,null,null,7]
[]
[null,"Nog geen dessert geselecteerd"]
[null,"Halve gegarneerde maan",null,null,null,null,null,null,8.8000000000000007,null,"Een echte smaakbom van chocolade, rode vruchten en basilicum"]
[null,"Waaier van nagerechten (gebak, ijs, chocomousse, fruit)",null,null,null,null,null,null,6,null,"Zeer royaal bord met gebak, ijs, chocomousse en fruit"]
[null,"IJstaart ambachtelijk, speciale vorm, smaak naar keuze",null,null,null,null,null,null,5.3,null,"Ijstaart met foto: 15 euro per foto (min personen). Speciale garnituren mits meerprijs mogelijk."]
[null,"Trio van witte- melk- en fondantchocolade op amandelbiscuit  ",null,null,null,null,null,null,5.9]
[null,"Stel zelf uw mini dessertbordje samen met 4 dessertjes",null,null,null,null,null,null,3.9,null,"Roomijs en/of Bruine chocolademousse en/of Pasteis de nata en/of "]
[null,"Coupe met vers fruit en verse slagroom.",null,null,null,null,null,null,3.9,null,"Vanilleijs, vers fruit en verse slagroom"]
[null,"Aardbeiensoepje met sinaasappel in seizoen",null,null,null,null,null,null,3.9,null,"Sinaasappelsap met grand marnier en daarin vers gesneden aardbeien (alleen in seizoen)"]
[null,"Coupe met aardbeien en verse slagroom.",null,null,null,null,null,null,3.9,null,"Vanilleijs, verse aardbeien en verse slagroom"]
[null,"Dame blanche",null,null,null,null,null,null,3.9,null,"Vanilleijs, verse slagroom,warme chocoladesaus."]
[null,"- frambozentaart",null,null,null,null,null,null,5.75,null,"De lekkerste van alle gebakjes."]
[null,"- progres",null,null,null,null,null,null,5.75,null,"Een klassieker."]
[null,"- fruitgebakje",null,null,null,null,null,null,3.9,null,"Klein maar fijn gebakje"]
[null,"- biscuit crème fraiche met coulis",null,null,null,null,null,null,3.9,null,"Vrij groot stuk met slagroom. Foto op de taart: suppl. € 0,7 per stuk taart en € 10 per foto "]
[null,"- warme appeltaart met een bolletje ijs",null,null,null,null,null,null,3.9,null,"Hier heb je zowel gebak als vanilleijs."]
[null,"- zwarte woudtaart",null,null,null,null,null,null,5.75,null,"Biscuit met cacaopoeder in een tasje."]
[null,"Sabayon met rood fruit",null,null,null,null,null,null,3.9,null,"Sabayon, fruit en ijs"]
[null,"Verse ananas met ijs en suikerspin",null,null,null,null,null,null,3.9]
[null,"Basis dessertbuffet met:",null,null,null,null,null,null,10,null,"vers fruit, verschillende soorten sorbet, chocolademousse, roomijs","variatie van miserable, javanais, pasteis de nata, roomsoes, speculoostaart,","De samenstelling van het buffet kan verschillen, naargelang de grootte van de groep",null,null,"Belangrijk: De prijs van dit dessertbuffet geldt alleen indien voorafgegaan door een maaltijd!!"]
[null,"Uitgebreid dessertbuffet met:",null,null,null,null,null,null,12,null,"vers fruit, verschillende soorten sorbet, chocolademousse, roomijs","variatie van miserable, javanais, pasteis de nata, roomsoes, speculoostaart,","De samenstelling van het buffet kan verschillen, naargelang de grootte van de groep","assortiment van mini-bavarois (framboos-passie-zwarte woud-pistache-chocolade praliné)",null,"Belangrijk: De prijs van dit dessertbuffet geldt alleen indien voorafgegaan door een maaltijd!!"]
[null,"Uitgebreid en luxueus dessertbuffet met:",null,null,null,null,null,null,14,null,"vers fruit, verschillende soorten sorbet, chocolademousse, roomijs","variatie van miserable, javanais, pasteis de nata, roomsoes, speculoostaart,","De samenstelling van het buffet kan verschillen, naargelang de grootte van de groep","assortiment van mini-bavarois (framboos-passie-zwarte woud-pistache-chocolade praliné)","dessertglaasjes (framboos-amandel - trio chocolade - mango-caramel - chocolade praliné)","Belangrijk: De prijs van dit dessertbuffet geldt alleen indien voorafgegaan door een maaltijd!!"]
[]
[]
[]
[]
[]
[]
[null,"Nog geen keuze gemaakt"]
[null,"Koffie 3 X bediend",null,null,null,null,null,"€ ",2.5]
[null,"Koffie 3 X bediend met koekjes",null,null,null,null,null,"€ ",3.35]
[null,"Koffie 3 X bediend met pralines",null,null,null,null,null,"€ ",3.9]
[]
["Alle drank na de maaltijd komt op één rekening en wordt door de organisator van het feest betaald",null,null,null,null,null,null,null,null,null,null,null,null,null,null,"één rekening"]
["Elke gast die na de maaltijd een drankje bestelt rekent direct af aan de bar",null,null,null,null,null,null,null,null,null,null,null,null,null,null,"direct afrekenen"]
["Forfait voor drank naar believen (alle bieren en frisdranken van de drankkaart in de zaal) na een maaltijd. pp: ",null,null,null,null,null,null,null,null,null,null,null,null,null,16,16,"alletwee de prijzen nodig!"]
["Indien  er geen volwaardige maaltijd wordt genomen, dienen er minstens 4 belegde broodjes genomen te worden en verhoogt het drankforfait tot € 28,00 ",null,null,null,null,null,null,null,null,null,null,null,null,null,null,28]
["'s middags tot 21 u - 's avonds onbeperkt. Let op! Artikel 8 van de verkoopsvoorwaarden (zie laatste bladzijde) kan hier van toepassing zijn !!!!"]
[]
["Neem contact op met de zaakvoerder op tel nr 0475/618058",null,null,null,null,null,null,null,null,null,null,null,null,null,null,"x"]
["om hier zeker geen misverstanden over te hebben!"]
[]
[]
["Verbruik van DJ  ten laste van de klant"]
[]
["Voor onze vegetarische klanten:"]
[]
["- Voor onze vegetarische klanten bereiden wij graag een aparte schotel. "]
["Wij vragen wel met aandrang om op voorhand te melden als er vegetariërs zijn."]
["Zij eten mee aan de prijs van de rest van de groep."]
[]
[]
[]
[]
["Mensen met een speciaal dieet:"]
[]
["Wij houden rekening met speciale wensen van mensen die een dieet volgen, "]
["maar alleen indien op voorhand gemeld. "]
[]
["Halal kan ook, onder toezicht van een moslim bereid."]
[]
["ja"]
["nee"]
[]
[]
[]
[]
[]
[]
[]
[]
[]
[]
[]
[]
[]
[]
[]
[]
[]
[]
[]
[]
[]
[]
[]
[]
[]
[]
[]
[]
[]
[]
[]
[]
[]
[]
[]
[]
[]
[]
[]
[]
[]
[]
[]
[]
[]
[]
[]
[]
[]
[]
[]
[]
[]
[]
[]
[]
[]
[]
[]
[]
[]
[]
[]
[]
[]
[]
[]
[]
[]
[]
[]
[]
[]
[]
[]
[]
[]
[]
[]
[]
[]
[]
[]
[]
[]
[]
[]
[]
[]
[]
[]
[]
[]
[]
[]
[]
[]
[]
[]
[]
[]
[]
[]
[]
[]
[]
[]
[]
[]
[]
[]
[]
[]
[]
[]
[]
[]
[]
[]
[]
[]
[]
[]
[]
[]
[]
[]
[]
[]
[]
[]
[]
[]
[]
[]
[]
[]
[]
[]
[]
[]
[]
[]
[]
[]
[]
[]
[]
[]
[]
[]
[]
[]
[]
[]
[]
[]
[]
[]
[]
[]
[]
[]
[]
[]
[]
[]
[]
[]
[]
[]
[]
[]
[]
[]
[]
[]
[]
[]
[]
[]
[]
[]
[]
[]
[]
[]
[]
[]
[]
[]
["Betaling op de dag zelf (cash of bancontact), u bekomt 2% korting op het totaal"]
["Storting op BE 48 4631 1391 2127 of op BE 14 3770 7615 9383, min. 7 dagen voor het feest, 2% korting"]
["Betaling na het feest. Gelieve 40 % voorschot te storten op BE48 4631 1391 2127 of op BE14 3770 7615 9383 . Geen korting."]

{"sheet":"Algemene verkoopsvoorwaarden","index":2,"n_rows":63,"n_cols":13,"rows_kept":63,"cut":false,"hidden":false,"merged":[]}
[null,"Algemene verkoopsvoorwaarden:"]
[null,"1) Onze facturen zijn contant te betalen bij levering van de goederen. Bijgevolg zal in geval van laattijdige betaling"]
[null,"van rechtswege en zonder voorafgaande ingebrekestelling een intrest aangerekend worden van 12% per jaar op de "]
[null,"bedragen, verschuldigd acht dagen na de vervaldag van de facturen. Tevens zal bij gebrek aan betaling na "]
[null,"aanmaning bij gewone brief, het verschuldigde bedrag van rechtswege verhoogd worden met een forfaitaire"]
[null,"vergoeding van 12 % met een minimum van € 50  voor bijkomende administratieve kosten, debiteurenbewaking "]
[null,"en commerciële stoornissen. Wij behouden ons het recht voor op elk moment de leveringen te staken. Elke "]
[null,"klacht over de kwaliteit van de geleverde goederen moet uiterlijk 24 uur na de levering worden overgemaakt. "]
[null,"Klachten in verband met facturatie kunnen slechts in aanmerking worden genomen zo zij binnen de acht "]
[null,"dagen na ontvangst van de goederen bij aangetekende brief worden meegedeeld. In geval van betwisting zijn "]
[null,"uitsluitend de rechtbanken van Kortrijk bevoegd. De leveringen  geschieden op risico van de bestemmeling. Er "]
[null,"wordt uitdrukkelijk overeengekomen dat de klant door het plaatsen van een bestelling onze algemene "]
[null,"verkoopsvoorwaarden erkent. Elke wijziging hieraan moet voorafgaandelijk in een schriftelijk akkoord worden "]
[null,"vastgelegd."]
[]
[null,"2) Annulatie dient schriftelijk en gedateerd te geschieden. "]
[null,"In geval van annulatie minder dan 60 dagen voor de activiteit blijft het voorschot eigendom van het Katelijnenhof."]
[null,"Voor annulatie minder dan 10 dagen voor de activiteit is de klant in alle gevallen verplicht 35 % van de reservatie-"]
[null,"waarde van de gehele manifestatie te vergoeden."]
[null,"Bij annulatie minder dan 5 dagen voor  de activiteit is de klant in alle gevallen verplicht de reservatie waarde van de "]
[null,"gehele manifestatie te vergoeden."]
[]
[null,"3) Iedere levering van dranken, voedingswaren of diensten in de  zalen is uitsluitend voorbehouden aan het "]
[null,"Katelijnenhof, tenzij er een andere schriftelijke overeenkomst is."]
[]
[null,"4) De klant is eraan gehouden voor iedere dansavond met groot orkest een aanvraag tot toelating in te dienen bij "]
[null,"SABAM, Rijselsestraat 51, 8500 Kortrijk, Tel : 056/210738 en alle kosten voortvloeiend uit deze aanvraag te "]
[null,"dragen.  Voor een gewone disc-jockey betalen wij jaarlijks een vaste bijdrage. Het verbruik (drank en voeding) "]
[null,"van de DJ is ten laste van de klant. Gelet op de nieuwe geluidsnormen, van kracht op 01/01/2013, moet de "]
[null,"klant de DJ of elke andere persoon of toestel dat  geluid produceert verplichten zich aan deze normen te houden. "]
[null,"De toelating voor onze zaal is – maximaal geluidsniveau > 85 dB(A) LAeq,15min en ≤ 95 dB(A) LAeq,15min. "]
[null,"Dit is ruim voldoende. Alle boetes ten gevolge een overschrijding van deze voorwaarde zijn ten laste van de "]
[null,"klant. Er wordt een professionele houding van elke DJ of geluidstechnicus verwacht."]
[]
[null,"5) Alle door de klant meegebrachte materiaal dient door de klant te worden verzekerd en direct na het beëindigen"]
[null,"van de manifestatie te worden verwijderd uit de zaal. Het Katelijnenhof behoudt het recht de leverancier te "]
[null,"aanvaarden en voorschriften te geven om de lokalen ongeschonden te behouden. Het is strikt verboden om "]
[null,"versieringen aan de muren of plafonds te bevestigen met duimspijkers of kleefband ! Bij beschadigingen van "]
[null,"een deel van de muur wordt het geheel als beschadigd beschouwd."]
[]
[null,"6) Het gebruik van de zaal is strikt beperkt tot de in deze overeenkomst vastgestelde functie. "]
[null,"Iedere wijziging in de voorheen verklaarde bestemming brengt automatisch het recht tot prijsherziening met zich mee."]
[]
[null,"7) Het gebruik van de zaal is gratis van zodra het verbruik hoger ligt dan € ",null,null,null,null,null,null,null,{"$f":"matrixen!E6","v":950}]
[null,{"$f":"\"Indien het verbruik lager ligt dan wordt het factuurbedrag opgetrokken tot € \"&J44","v":"Indien het verbruik lager ligt dan wordt het factuurbedrag opgetrokken tot € 950"}]
[null,"Indien uw feest cash (max € 3000) betaald wordt op de dag zelf dan krijgt u een korting van 2 % "]
[null,"op de gehele factuur. Voor traiteurdienst gelden andere kortingsregels."]
[]
[null,"8) Op vrijdag-, zaterdag- en (in geval van een avondfeest) op zondagnacht sluit de zaal, "]
[null,"overeenkomstig het politiereglement, om 03 uur. "]
[null,"Indien de klant dit wenst kan een afwijking bekomen worden op dit reglement mits het betalen van € ",null,null,null,null,null,null,null,null,null,null,{"$f":"J44/10","v":95}]
[null,"(btw incl.) per uur. De klant heeft tijd tot 02u30 om te beslissen of hij van deze afwijking wenst gebruik te "]
[null,"maken of niet. Indien de klant akkoord gaat deze toeslag  te betalen zal het Katelijnenhof  onmiddellijk een "]
[null,"aanvraag doen bij de lokale politie. In het andere geval worden vanaf 02u45 geen dranken meer bediend en"]
[null,"sluiten om 03u00 de deuren. Voor de andere dagen gelden andere tarieven."]
[null,"Op een zaterdag - en zondagmiddagfeest sluit de zaal om 18u30. Indien u wenst langer te blijven wordt per "]
[null,"begonnen uur eveneens een toeslag van € ",null,null,null,null,{"$f":"M51","v":95}]
[null,"(btw incl.) aangerekend."]
[null,"9) De klant is verantwoordelijk voor de goede orde in en rond de feestzaal. Schade veroorzaakt door een der "]
[null,"aanwezigen kan verhaald worden op deze persoon maar als deze om gelijk welke reden de schade niet kan "]
[null,"vergoeden (vb: te weinig financiële middelen of de veroorzaker is onbekend) kan deze schade eveneens "]
[null,"ondeelbaar worden verhaald op de klant , zijnde de persoon die het feest heeft besteld. VB: per gebroken tulpje "]
[null,"aan de lusters van de grote zaal wordt 25 euro aangerekend."]

{"sheet":"Reservatievoorstel","index":3,"n_rows":50,"n_cols":33,"rows_kept":50,"cut":false,"hidden":false,"merged":[[43,0,44,7],[36,0,37,8],[38,0,40,8],[32,4,33,8],[2,16,3,16],[2,14,3,14],[2,15,3,15],[16,9,16,17],[23,14,23,17],[25,9,26,17],[2,17,3,17],[9,12,9,13],[12,9,12,11],[12,12,12,16],[14,9,14,17]]}
[null,null,"Reservatievoorstel    ",null,null,null,null,null,null,null,"Uitsplitsing per BTW tarief.",null,null,null,null,"Totaalprijs per vol:",{"$f":"D9","v":33.799999999999997}]
["Naam Klant:",null,{"$f":"'koud buffet'!F84","v":0},null,"Katelijnenhof",null,null,null,null,null,null,null,null,null,{"$f":"IF(P2>0,\"Prijs drankforfait na de maaltijd, volledig aan 21% BTW:\",\"\")","v":"Prijs drankforfait na de maaltijd, volledig aan 21% BTW:"},{"$f":"IF(Q2>0,\"Prijs drankforfait na de maaltijd, volledig aan 21% BTW:\",\"\")","v":""},{"$f":"'koud buffet'!D68","v":0}]
["Adres:",null,{"$f":"'koud buffet'!F85","v":0},null,"Heirweg 172",null,null,"aankomst om:",{"$f":"'koud buffet'!F82","v":0},null,null,null,"Menu",null,"Dep. B",{"$f":"IF(Q2>0,\"Drank- forfait:\",\"\")","v":""},"Totaal aan 21%","Dep. A"]
["Stad:",null,{"$f":"'koud buffet'!F86","v":0},null,"8800 Roeselare",null,null,"aan tafel om:",{"$f":"'koud buffet'!F83","v":0},null,"aantal","totaal:","deel 12%","deel21%"]
["Tel nr:",null,{"$f":"'koud buffet'!F87","v":0},null,"info@katelijnenhof.be",null,null,null,null,"Vol",{"$f":"C9","v":0},{"$f":"Q1-Q2","v":33.799999999999997},{"$f":"ROUND(L5*0.65,2)","v":21.97},{"$f":"L5-M5","v":11.829999999999998},{"$f":"K5*M5","v":0},{"$f":"Q2","v":0},{"$f":"N5+P5","v":11.829999999999998},{"$f":"K5*Q5","v":0}]
[{"$f":"'koud buffet'!J95","v":"reden feest:"},{"$f":"'koud buffet'!K95","v":0},null,null,"Gsm 0475/618058",null,null,null,null,"JR 1/2",{"$f":"C10","v":0},{"$f":"L5/2","v":16.899999999999999},{"$f":"ROUND(L6*0.65,2)","v":10.99},{"$f":"L6-M6","v":5.9099999999999984},{"$f":"K6*M6","v":0},{"$f":"Q2/2","v":0},{"$f":"N6+P6","v":5.9099999999999984},{"$f":"K6*Q6","v":0}]
["Datum activiteit:",null,{"$f":"'koud buffet'!F75","v":"00:00:00"},null,"email klant:",{"$f":"'koud buffet'!F88","v":0},null,null,null,"JR 1/3",{"$f":"C11","v":0},{"$f":"L5/3","v":11.266666666666666},{"$f":"ROUND(L7*0.65,2)","v":7.32},3.9466666666666654,0,{"$f":"Q2/3","v":0},{"$f":"N7+P7","v":3.9466666666666654},0]
[null,null,"Totaal aantal personen: ",{"$f":"C9+C12+C11+C10","v":0},null,null,null,null,null,"JR gratis",{"$f":"C12","v":0},{"$f":"E12","v":0},{"$f":"L8*0.65","v":0},{"$f":"L8*0.35","v":0},0,null,{"$f":"N8+P8","v":0},0]
[null,"volwassenen:",{"$f":"'koud buffet'!F77","v":0},{"$f":"'koud buffet'!D7","v":33.799999999999997},null,null,null,"raming totaal 1:",{"$f":"C9*D9+C10*D10+C11*D11+C12*D12","v":0},null,null,"Voorschot reeds betaald:",null,null,{"$f":"ROUND(M9/98*100,2)","v":0},{"$f":"IF(Q9>0,\"Huur zaal/muziekinstallatie: \",\"\")","v":""},{"$f":"I11","v":0}]
[null,"JR 1/2 (6 t.e.m. 11) :",{"$f":"'koud buffet'!F78","v":0},{"$f":"'koud buffet'!J7","v":16.899999999999999},null,null,null,"ander rekenblad:",{"$f":"'koud buffet'!F90","v":0},null,null,"Gestort / betaald op:"]
[null,"JR 1/3 (3 t.e.m. 5) :",{"$f":"'koud buffet'!F79","v":0},{"$f":"'koud buffet'!H7","v":11.266666666666666},null,null,null,"huur zaal:",{"$f":"IF(D8=0,0,IF((I9+I10)<'Algemene verkoopsvoorwaarden'!J44,'Algemene verkoopsvoorwaarden'!J44-Reservatievoorstel!I9-Reservatievoorstel!I10,0))","v":0},null,null,{"$f":"IF(O9>0,\"Voorschot uitgesplitst:\",\"\")","v":""},{"$f":"IF(O9>0,\" € \"&ROUND(O9*0.65,2)& \" x 12% => Dep. B  en € \" & ROUND(O9*0.35,2) & \" x 21% => Dep. A.\",\"\")","v":""}]
[null,"JR gratis (0 t.e.m. 2) :",{"$f":"'koud buffet'!F80","v":0},{"$f":"'koud buffet'!F7","v":"0,00"},null,null,null,"raming algemeen totaal:",{"$f":"I11+I10+I9","v":0},null,null,null,"Voorschot wordt gesplitst over:",{"$f":"IF(O9>0,ROUNDUP((O9+1)/L5,0),0)","v":0}," volwassenen"]
[null,null,null,null,null,null,null,"raming te betalen indien contante betaling  (max € 3000 cash):",{"$f":"'koud buffet'!G96","v":0},"Input GKS:",null,null,{"$f":"IF(O9*0.65 >N12*M5,\"ONMOGELIJK U bekomt negatieve waarden.\",\"\")","v":""}]
["Voorkeur tafelschikking:",null,null,{"$f":"'koud buffet'!K94","v":"geen voorkeur"},null,null,null,null,null,{"$f":"N12","v":0},"vol","x",{"$f":"IFERROR(ROUND(M5-O9*0.65/N12,2),\"\")","v":""},0.12,{"$f":"IFERROR(J14*M14,\"\")","v":""},"Dep. B","Verwerking voorschot"]
[{"$f":"'koud buffet'!H76","v":""},null,null,null,null,null,null,null,{"$f":"'koud buffet'!B20","v":"De gast die een extra aperitief bestelt betaalt deze zelf"},{"$f":"IFERROR( \" Er wordt € \" & ROUND(O9*0.65/N12,2) & \" minder geboekt bij \" & N12 & \" personen omdat dit reeds als voorschot werd geboekt.\",\"\")","v":""}]
[{"$f":"'koud buffet'!H77","v":""},null,null,null,null,null,null,null,{"$f":"IF(O9>0,\" Uw voorschot van € \" & O9 & \" wordt nog in mindering gebracht\",\"\")","v":""},{"$f":"N12","v":0},"vol","x",{"$f":"IFERROR(ROUND(Q5-O9*0.35/N12,2),\"\")","v":""},0.21,{"$f":"IFERROR(J16*M16,\"\")","v":""},"Dep. A","Verwerking voorschot"]
[{"$f":"'koud buffet'!H78","v":""},null,null,null,null,null,null,null,null,{"$f":"IFERROR( \" Er wordt € \" & ROUND(O9*0.35/N12,2) & \" minder geboekt bij \" & N12 & \" personen omdat dit reeds als voorschot werd geboekt.\",\"\")","v":""}]
[{"$f":"'koud buffet'!H79","v":""},null,null,null,null,null,null,null,null,{"$f":"K5-J14","v":0},{"$f":"K14","v":"vol"},"x",{"$f":"M5","v":21.97},0.12,{"$f":"J18*M18","v":0},"Dep. B"]
[{"$f":"'koud buffet'!H80","v":""},null,null,null,null,null,null,null,null,{"$f":"K5-J16","v":0},{"$f":"K16","v":"vol"},"x",{"$f":"Q5","v":11.829999999999998},0.21,0,"Dep. A"]
[{"$f":"'koud buffet'!H81","v":""},null,null,null,null,null,null,null,null,{"$f":"K6","v":0},{"$f":"J6","v":"JR 1/2"},"x",{"$f":"M6","v":10.99},0.12,0,"Dep. B"]
[{"$f":"'koud buffet'!H82","v":""},null,null,null,null,null,null,null,null,{"$f":"K6","v":0},{"$f":"J6","v":"JR 1/2"},"x",{"$f":"Q6","v":5.9099999999999984},0.21,0,"Dep. A"]
[{"$f":"'koud buffet'!H83","v":"Koude aardappelen"},null,null,null,null,null,{"$f":"'koud buffet'!H84","v":"Groenten en sausen "},null,null,{"$f":"K7","v":0},{"$f":"J7","v":"JR 1/3"},"x",{"$f":"M7","v":7.32},0.12,0,"Dep. B"]
["Koud buffet met volgende specialiteiten:",null,null,null,{"$f":"IF('koud buffet'!B50=$AG$23,\"\",'koud buffet'!B50)","v":""},null,null,null,{"$f":"IF('koud buffet'!F50=$AG$25,\"\",'koud buffet'!F50)","v":""},{"$f":"K7","v":0},{"$f":"J7","v":"JR 1/3"},"x",{"$f":"Q7","v":3.9466666666666654},0.21,0,"Dep. A",null,null,null,null,null,null,null,null,null,null,null,null,null,null,null,null,{"$f":"matrixen!B97","v":"Kies uit deze vlees- of visspecialiteiten"}]
[{"$f":"IF('koud buffet'!B39=$AG$23,\"\",'koud buffet'!B39)","v":""},null,null,null,{"$f":"IF('koud buffet'!F39=$AG$24,\"\",'koud buffet'!F39)","v":""},null,null,null,{"$f":"IF('koud buffet'!F51=$AG$25,\"\",'koud buffet'!F51)","v":""},{"$f":"IF(L24>0,\"1\",0)","v":0},{"$f":"IF(L24>0,\"x\",\"\")","v":""},{"$f":"Q9","v":0},{"$f":"IF(L24>0,\"21%\",\"\")","v":""},{"$f":"IF(L24>0,\"Dep. A\",\"\")","v":""},{"$f":"P9","v":""},null,null,null,null,null,null,null,null,null,null,null,null,null,null,null,null,null,{"$f":"matrixen!E97","v":"supplement 1"}]
[{"$f":"IF('koud buffet'!B40=$AG$23,\"\",'koud buffet'!B40)","v":""},null,null,null,{"$f":"IF('koud buffet'!F40=$AG$24,\"\",'koud buffet'!F40)","v":""},null,null,null,{"$f":"IF('koud buffet'!F52=$AG$25,\"\",'koud buffet'!F52)","v":""},null,"Totale boekwaarde:",{"$f":"SUM(O14:O23)+L24+O9+I10","v":0},{"$f":"IF(SUM(O14:O23)+L24+O9+I10 <>I12,\" Er is iets fout met de splitsingstabel\",\"\")","v":""},null,null,null,null,null,null,null,null,null,null,null,null,null,null,null,null,null,null,null,{"$f":"matrixen!H97","v":"supplement 2"}]
[{"$f":"IF('koud buffet'!B41=$AG$23,\"\",'koud buffet'!B41)","v":""},null,null,null,{"$f":"IF('koud buffet'!F41=$AG$24,\"\",'koud buffet'!F41)","v":""},null,null,null,null,{"$f":"\"De eventuele korting contant van 2 %, in het huidig voorstel is dit € \" &ROUND( I12-I13,2) & \" is nog niet in bovenstaande splitsing verwerkt.\"","v":"De eventuele korting contant van 2 %, in het huidig voorstel is dit € 0 is nog niet in bovenstaande splitsing verwerkt."}]
[{"$f":"IF('koud buffet'!B42=$AG$23,\"\",'koud buffet'!B42)","v":""},null,null,null,{"$f":"IF('koud buffet'!F42=$AG$24,\"\",'koud buffet'!F42)","v":""}]
[{"$f":"IF('koud buffet'!B43=$AG$23,\"\",'koud buffet'!B43)","v":""},null,null,null,{"$f":"IF('koud buffet'!F43=$AG$24,\"\",'koud buffet'!F43)","v":""},null,null,null,null,{"$f":"IF(M28<>\"\",\"Detail van het aperitief:\",\"\")","v":""},null,null,{"$f":"A15","v":""}]
[{"$f":"IF('koud buffet'!B44=$AG$23,\"\",'koud buffet'!B44)","v":""},null,null,null,{"$f":"IF('koud buffet'!F44=$AG$24,\"\",'koud buffet'!F44)","v":""}]
[{"$f":"IF('koud buffet'!B45=$AG$23,\"\",'koud buffet'!B45)","v":""},null,null,null,{"$f":"IF('koud buffet'!F45=$AG$24,\"\",'koud buffet'!F45)","v":""},null,null,null,null,{"$f":"'koud buffet'!H13","v":0}]
[{"$f":"IF('koud buffet'!B46=$AG$23,\"\",'koud buffet'!B46)","v":""},null,null,null,{"$f":"IF('koud buffet'!F46=$AG$24,\"\",'koud buffet'!F46)","v":""},null,null,null,null,{"$f":"'koud buffet'!H14","v":0}]
[{"$f":"IF('koud buffet'!B47=$AG$23,\"\",'koud buffet'!B47)","v":""},null,null,null,{"$f":"IF('koud buffet'!F47=$AG$24,\"\",'koud buffet'!F47)","v":""},null,null,null,null,{"$f":"'koud buffet'!H15","v":0}]
[{"$f":"IF('koud buffet'!B48=$AG$23,\"\",'koud buffet'!B48)","v":""},null,null,null,{"$f":"'koud buffet'!H88","v":"Huiswijn, bieren en frisdranken als forfait"},null,null,null,null,{"$f":"'koud buffet'!H16","v":0}]
[{"$f":"IF('koud buffet'!B49=$AG$23,\"\",'koud buffet'!B49)","v":""},null,null,null,null,null,null,null,null,{"$f":"'koud buffet'!H17","v":0}]
[{"$f":"'koud buffet'!H89","v":""},null,null,null,null,null,null,null,null,{"$f":"'koud buffet'!H18","v":0}]
[{"$f":"'koud buffet'!H90","v":""},null,null,null,null,null,null,null,null,{"$f":"'koud buffet'!H19","v":0}]
[{"$f":"'koud buffet'!H91  & \" \" & 'koud buffet'!B68","v":"Keuze drank na de maaltijd: Alle drank na de maaltijd komt op één rekening en wordt door de organisator van het feest betaald"},null,null,null,null,null,null,null,null,{"$f":"'koud buffet'!H20","v":0}]
[null,null,null,null,null,null,null,null,null,{"$f":"'koud buffet'!H21","v":0}]
[{"$f":"\"Opmerking : \" &'koud buffet'!K96","v":"Opmerking : "},null,null,null,null,null,null,null,null,{"$f":"'koud buffet'!H22","v":0}]
[null,null,null,null,null,null,null,null,null,{"$f":"'koud buffet'!H23","v":0}]
[null,null,null,null,null,null,null,null,null,{"$f":"'koud buffet'!H24","v":0}]
[null,"Vegetariërs: ",{"$f":"'koud buffet'!G68","v":"nee"},null,null,"Feest met discobar: ",{"$f":"'koud buffet'!G70","v":"nee"},null,"Halal bereidingen: ",{"$f":"'koud buffet'!H25","v":0}]
[null,"Speciale dieten: ",{"$f":"'koud buffet'!I68","v":"nee"},null,null,{"$f":"'koud buffet'!H70","v":"Allergenen: "},{"$f":"'koud buffet'!I70","v":"nee"},null,{"$f":"'koud buffet'!K68","v":"nee"},{"$f":"'koud buffet'!H26","v":0}]
[{"$f":"'koud buffet'!B70 & \" \" & 'koud buffet'!B71","v":"Wijze van betaling: Betaling op de dag zelf (cash of bancontact), u bekomt 2% korting op het totaal"},null,null,null,null,null,null,null,"Factuur:",{"$f":"IF(A35<>\"\",\"Detail van het dessert:\",\"\")","v":""}]
[null,null,null,null,null,null,null,null,{"$f":"'koud buffet'!K97","v":"nee"},{"$f":"'koud buffet'!F59","v":0}]
["Het juiste aantal EN de gewenste tafelschikking moet ons meegedeeld worden ten laatste op: ",null,null,null,null,null,null,null,{"$f":"C7-9","v":-9},{"$f":"'koud buffet'!F60","v":0}]
["Wijzigingen na deze datum van aantal en/of tafelschikking hebben prijsherzieningen tot gevolg!",null,null,null,null,null,null,null,null,{"$f":"'koud buffet'!F61","v":0}]
["Dit aantal geldt als minimum voor facturatie. Verdere verkoopsvoorwaarden op een ander werkblad. ",null,null,null,null,null,null,null,null,{"$f":"'koud buffet'!F62","v":0}]
["Vergeet ze niet te lezen.",null,null,null,null,null,null,"Gaat u akkoord met de algemene verkoopsvoorwaarden?",{"$f":"'koud buffet'!K93","v":"ja"},{"$f":"'koud buffet'!F63","v":0}]
["Handtekening der beide partijen voor akkoord:",null,null,null,"De klant",null,null,"Het Katelijnenhof",null,{"$f":"'koud buffet'!F64","v":0}]